Cogmind - Beta 13 @@@ ROGUE MODE // 2024.04.07 @ 10:13:29 Player: graour Result: Destroyed by B-36 Bruiser with Hammer Performance ------------- Evolutions (1) 500 Regions Visited (2) 400 Robots Destroyed (17) 85 Value Destroyed (359) 359 Prototype IDs (0) 0 Alien Tech Used (0) 0 Bonus (0) 0 TOTAL SCORE: 1344 Bonus ------- None Cogmind --------- Core Integrity 0/400 Matter 219/300 Energy 88/100 System Corruption 3% Temperature Cool (0) Movement Core (50) Location -9/Materials Parts ------- > --- POWER (1) -------- (None) > --- PROPULSION (3) --- (None) > --- UTILITY (3) ------ Cooling System Signal Interpreter > --- WEAPON (2) ------- Small Laser > --- INVENTORY (5) ---- Grenade Launcher Peak State ------------ > --- POWER ------------ Ion Engine > --- PROPULSION ------- Wheel Wheel Wheel > --- UTILITY ---------- Small Storage Unit Signal Interpreter Hacking Suite > --- WEAPON ----------- Assault Rifle Light Assault Rifle > --- INVENTORY -------- Ion Engine Light Ion Engine Light Assault Rifle Grenade Launcher Mining Claw [Rating: 11] Favorites ----------- Power Ion Engine Engine Ion Engine Propulsion Compact Wheel Treads Light Treads Leg Aluminum Leg Wheel Compact Wheel Utility Small Storage Unit Device Cooling System Storage Small Storage Unit Processor Signal Interpreter Hackware Hacking Suite Weapon Light Assault Rifle Energy Gun Small Laser Ballistic Gun Light Assault Rifle Slashing Weapon Mining Claw Build | -11 -10 -9 ------- Run | Yrd Mat Mat Slots Evolved 2 | . . 2 Power . | . . . Propulsion 1 | . . 1 Utility 1 | . . 1 Weapon . | . . . Parts Attached 31 | 7 13 11 Power 6 | 1 1 4 Engine 6 | 1 1 4 Core . | . . . Reactor . | . . . Propulsion 11 | 2 8 1 Treads 2 | . 2 . Leg 2 | 2 . . Wheel 7 | . 6 1 Hover . | . . . Flight . | . . . Utility 4 | 1 1 2 Device 1 | . . 1 Storage 1 | 1 . . Processor 1 | . 1 . Hackware 1 | . . 1 Protection . | . . . Artifact . | . . . Weapon 10 | 3 3 4 Energy Gun 2 | 1 . 1 Energy Cannon . | . . . Ballistic Gun 6 | 2 2 2 Ballistic Cannon . | . . . Launcher . | . . . Special Weapon . | . . . Impact Weapon . | . . . Slashing Weapon 2 | . 1 1 Piercing Weapon . | . . . Special Melee Weapon . | . . . Unidentified Prototypes . | . . . Parts Lost 15 | . 2 13 Power 4 | . . 4 Propulsion 5 | . 2 3 Utility 2 | . . 2 Weapon 4 | . . 4 Highest Loss Streak 6 | . 2 6 To Critical Strikes . | . . . Average Slot Usage (%) 81 | . 90 59 Engine 12 | . 14 8 Wheel 20 | . 23 11 Storage 11 | . 14 6 Processor 8 | . 7 11 Ballistic Gun 20 | . 24 11 Slashing Weapon 4 | . 4 5 Naked Turns . | . . . Heaviest Build 14 | 12 14 14 Greatest Support 40 | 20 40 30 Greatest Overweight (x) 4 | . 4 . Average Overweight (x) . | . . . Largest Inventory Capacity 8 | 8 8 8 Average Capacity 7 | 7 8 6 Most Carried 8 | 6 8 6 Average Carried 5 | 2 7 3 Final Capacity 8 | 8 8 5 Final Carried 7 | 6 7 1 Class Distribution -------------------- 100% | Mutant Dominant Class ---------------- Mutant | -10/Materials Mutant | -9/Materials Resources | -11 -10 -9 ----------- Run | Yrd Mat Mat Matter Collected 556 | 278 264 14 Remotely . | . . . Salvage Created 528 | 66 277 185 Parts 34 | . 20 14 Haulers Intercepted . | . . . Recyclers Shooed . | . . . Parts Field Recycled . | . . . Retrieved Matter . | . . . Parts Self-Destructed . | . . . Prevented . | . . . Kills | -11 -10 -9 ------- Run | Yrd Mat Mat Combat Hostiles Destroyed 14 | . 7 7 Melee 2 | . . 2 Guns 12 | . 7 5 Classes Destroyed 5 | 1 4 . Recycler 1 | 1 . . Operator 1 | . 1 . Watcher 1 | . 1 . Swarmer 7 | . 3 4 Grunt 7 | . 4 3 Best Kill Streak 5 | 1 4 5 Combat Bots Only 5 | . 3 5 Max Kills in Single Turn 1 | 1 1 1 Gunslinging . | . . . Exploded . | . . . Melee 1 | . . 1 Uniques/NPCs Destroyed . | . . . Combat | -11 -10 -9 -------- Run | Yrd Mat Mat Hostile Shots Fired 147 | . 38 109 Missed 36 | . 8 28 Damage Taken 1531 | . 327 1204 Core 522 | . 95 427 Absorbed by Shields . | . . . Core Remaining (%) 81 | 100 62 . Volleys Fired 82 | 4 39 39 Largest 2 | 2 2 2 Hottest 60 | 40 40 60 Shots Fired 133 | 8 74 51 Gun 133 | 8 74 51 Cannon . | . . . Launcher . | . . . Special . | . . . Kinetic 122 | 8 74 40 Thermal 11 | . . 11 Explosive . | . . . Electromagnetic . | . . . Robot Hit Streak 11 | 7 8 11 Robot Miss Streak 3 | 1 3 3 Penetration Max . | . . . Secondary Targets . | . . . Shots Hit Robots 104 | 7 45 52 Core Hits 34 | 2 18 14 Critical Kills . | . . . Critical Parts Destroyed 1 | . 1 . Critical Strikes 1 | . 1 . Destroy 1 | . 1 . Melee Attacks 38 | . 14 24 Impact . | . . . Slashing 38 | . 14 24 Piercing . | . . . Sneak Attacks . | . . . Combat Hostiles . | . . . Follow-up Attacks . | . . . Damage Inflicted 1144 | 53 457 634 Guns 842 | 53 457 332 Cannons . | . . . Explosions . | . . . Melee 302 | . . 302 Ramming . | . . . Kinetic 732 | 53 457 222 Thermal 110 | . . 110 Explosive . | . . . Electromagnetic . | . . . Impact . | . . . Slashing 302 | . . 302 Piercing . | . . . Highest Corruption 3 | . . 3 Average Corruption 3 | . . 3 Corruption Purged . | . . . Corruption Blocked . | . . . Effects 2 | . . 2 Message Errors 1 | . . 1 Heat Flow Errors 1 | . . 1 Overload Shots . | . . . Overflow Damage 1 | . . 1 Projectiles . | . . . Explosions . | . . . Melee 1 | . . 1 Knockbacks . | . . . Impact . | . . . Kinetic . | . . . Secondary . | . . . Self-Inflicted Damage . | . . . Shots . | . . . Rammed . | . . . Targets Rammed . | . . . Kicked . | . . . Crushed . | . . . Highest Temperature 206 | . 12 206 Average Temperature 29 | . 7 100 Received Heat Transfer 426 | . 144 282 Siege Activations . | . . . Robots Corrupted . | . . . Combat Hostiles . | . . . Parts Fried . | . . . Impact Corruptions . | . . . Robots Melted . | . . . Combat Hostiles . | . . . Parts Melted . | . . . Heat Transferred 250 | . . 250 Parts Sabotaged . | . . . Parts Stolen . | . . . Parts Stripped . | . . . Power Chain Reactions . | . . . Alert | -11 -10 -9 ------- Run | Yrd Mat Mat Peak Influence 181 | 5 181 90 Initial 34 | . 3 34 Average 40 | 3 50 39 Maximum Alert Level . | . . . Low Security (%) 100 | 100 100 100 Level 1 . | . . . Level 2 . | . . . Level 3 . | . . . Level 4 . | . . . Level 5 . | . . . High Security . | . . . Max Security . | . . . Squads Dispatched 1 | . 1 . Investigation . | . . . Extermination . | . . . Reinforcement 1 | . 1 . Assault . | . . . Garrison . | . . . Intercept . | . . . Searches Triggered . | . . . Construction Impeded . | . . . Haulers Reinforced . | . . . Active Scanning Responses . | . . . Cargo Convoy Interrupts . | . . . Stealth | -11 -10 -9 --------- Run | Yrd Mat Mat Distress Signals 2 | . 1 1 Communications Jammed . | . . . Distress Signals . | . . . Times Spotted 26 | . 15 11 Peak Tracking Total 10 | . 4 10 Tactical Retreats 1 | . 1 . Traps | -11 -10 -9 ------- Run | Yrd Mat Mat Traps Triggered . | . . . Indirectly . | . . . Trap Hack Attempts . | . . . Triggered . | . . . Disarmed . | . . . Reprogrammed . | . . . Reused . | . . . Traps Extracted . | . . . Installed . | . . . Triggered . | . . . Machines | -11 -10 -9 ---------- Run | Yrd Mat Mat Machines Disabled . | . . . Max in Single Turn . | . . . Machines Repaired . | . . . Machines Dismantled . | . . . Machines Sabotaged . | . . . Overloaded Fab Kills . | . . . Hacking | -11 -10 -9 --------- Run | Yrd Mat Mat Machines Accessed 2 | . 2 . Terminals 2 | . 2 . Fabricators . | . . . Repair Stations . | . . . Recycling Units . | . . . Scanalyzers . | . . . Garrison Access . | . . . Total Hacks 3 | . 3 . Successful . | . . . Failed 3 | . 3 . Catastrophic 2 | . 2 . Database Lockouts . | . . . Manual 3 | . 3 . Terminals 3 | . 3 . Fabricators . | . . . Repair Stations . | . . . Recycling Units . | . . . Scanalyzers . | . . . Garrison Access . | . . . Terminal Hacks . | . . . Fabricator Hacks . | . . . Repair Station Hacks . | . . . Recycling Unit Hacks . | . . . Scanalyzer . | . . . Garrison Access Hacks . | . . . Unauthorized Hacks . | . . . Terminals . | . . . Fabricators . | . . . Repair Stations . | . . . Recycling Units . | . . . Scanalyzers . | . . . Garrison Access . | . . . Data Cores Recovered . | . . . Used . | . . . Hacking Detections 2 | . 2 . Full Trace Events . | . . . Feedback Events . | . . . Feedback Blocked . | . . . Robot Schematics Acquired . | . . . Robots Built . | . . . Authchips . | . . . Time . | . . . Total Robot Build Rating . | . . . Part Schematics Acquired . | . . . Parts Built . | . . . Authchips . | . . . Time . | . . . Total Part Build Rating . | . . . Parts Repaired . | . . . Time . | . . . Parts Recycled . | . . . Recycled Matter . | . . . Retrieved Matter . | . . . Retrieved Components . | . . . Parts Scanalyzed . | . . . Part Schematics Acquired . | . . . Parts Damaged . | . . . Bothacking | -11 -10 -9 ------------ Run | Yrd Mat Mat Used RIF Installer . | . . . Robots Hacked . | . . . Non-combat . | . . . Combat . | . . . Robot Hacks Applied . | . . . Relay Couplers Released . | . . . Fabnet Peak Effective % . | . . . Robots Rewired . | . . . Allies Hacked . | . . . Hacks Repelled . | . . . Allies | -11 -10 -9 -------- Run | Yrd Mat Mat Total Allies . | . . . Largest Group . | . . . Highest-Rated Group . | . . . Highest-Rated Ally . | . . . Total Orders . | . . . Ally Attacks . | . . . Total Damage . | . . . Kills . | . . . Allies Corrupted . | . . . Allies Melted . | . . . Intel | -11 -10 -9 ------- Run | Yrd Mat Mat Robot Analysis Total . | . . . Derelict Logs Recovered . | . . . Drone Launches . | . . . Drone Recoveries . | . . . Exploration | -11 -10 -9 ------------- Run | Yrd Mat Mat Turns Passed 813 | 117 489 207 Spaces Moved 416 | 75 293 48 Core 12 | 4 8 . Treads 7 | . 7 . Legs 79 | 71 8 . Wheels 318 | . 270 48 Hover . | . . . Flight . | . . . Fastest Speed 50 | 50 80 80 Average Speed 102 | 116 102 80 Slowest Speed 250 | 120 250 80 Overloaded Moves . | . . . Propulsion Burnouts . | . . . Robots Hopped . | . . . Cave-ins Triggered 1 | . . 1 Exploration Rate (%) 17 | 4 38 10 Regions Visited 2 Branch Regions . Pre-discovered Areas . | . . . Known Exits Taken 1 | . 1 . Unknown Exits Taken 1 | 1 . . Scrap Searched . | . . . Spaces Dug 11 | . 8 3 Terrain Destroyed 11 | . 8 3 Melee 11 | . 8 3 Projectile . | . . . AOE . | . . . Terrain Rammed . | . . . Walls Destroyed . | . . . Machines Disabled . | . . . Actions | -11 -10 -9 --------- Run | Yrd Mat Mat Total 607 | 95 387 125 Wait 16 | 4 11 1 Move 414 | 74 292 48 Hop . | . . . Pick Up 16 | 5 9 2 Fast Attach 10 | 7 2 1 Attach 13 | . 5 8 Detach 1 | 1 . . Swap 8 | . 6 2 Drop 9 | . 9 . Fire 82 | 4 39 39 Melee 38 | . 14 24 Ram . | . . . Kick . | . . . Crush . | . . . Escape Stasis . | . . . Rewire . | . . . Trap . | . . . Miscellaneous . | . . . Route ------- -11/Scrapyard -10/Materials -9/Materials History --------- Turn | Location | Event 2 | -11/Scrapyard | Met Revision 17 6 | -11/Scrapyard | Discovered new exit (range 15) 118 | -11/Scrapyard | Entered Materials 311 | -10/Materials | Build established: Mutant 477 | -10/Materials | Discovered new exit (range 8) 571 | -10/Materials | Identified exit to Materials 607 | -10/Materials | Entered another Materials area 607 | -9/Materials | Evolved 2 slots: Propulsion x1, Utility x1 642 | -9/Materials | Crushed by falling debris 710 | -9/Materials | Lost 5 parts (1p2n1u1w) 722 | -9/Materials | Core integrity fell below 50% 772 | -9/Materials | Core integrity fell below 20% 786 | -9/Materials | Lost 6 parts (2p1n1u2w) 814 | -9/Materials | Destroyed by B-36 Bruiser with Hammer Last Messages --------------- Destroyed Flight Unit. S-10 Pest destroyed. R-06 Scavenger collects Sml. Laser. Lgt. Assault Rifle destroyed. R-06 Scavenger collects Lgt. Assault Rifle. G-34 Mercenary destroyed. Acquired Lgt. Ion Engine. S-10 Pest destroyed. Acquired 14 matter. R-06 Scavenger collects Flight Unit. System corrupted: Heat flow error (+251). R-06 Scavenger collects Lgt. Ion Engine. R-06 Scavenger collects Heat Sink. G-34 Mercenary destroyed. Acquired Sml. Laser. R-06 Scavenger collects Ion Engine. Lgt. Assault Rifle destroyed. <>VYQOLTOQ,F& PQH=CXULR,9CJC31F ZOSDY Lgt. Ion Engine destroyed. G-47 Trooper heat short circuits Particle Gun. Map ----- +----------------------------------------------------+ | ?????????????????????????????????????????????????? | | ?????????????????????????????????????????????????? | | ?????????????????????????????????????????????????? | | ?????????????????????????????????????????????????? | | ?????????????????????????????????????????????????? | | ?????????????????????????????????????????????????? | | ?????????????????????????????????????????????????? | | ?????????????????????????????????????????????????? | | ????????????????????????? ??????????????????? | | ???????????????????????? ??????????????????? | | ????????????????????? ??????????????????? | | ???????????????????" ??????????????????? | | ???????????????????? ??????????????????? | | ????????????????????? #??????????????????? | | ????????????????????? #??????????????????? | | ?????????????????????? #??????????????????? | | ???????????????????????![ ![ #??????????????????? | | ????????????????????????= != #??????????????????? | | ????????????????????????= [= #??????????????????? | | ????????????????????????? #??????????????????? | | ?????????????????????????? #??????????????????? | | ?????????????????????######= #??????????????????? | | ?????????????????????# #% #??????????????????? | | ?????????????????????# =#g #??????????????????? | | ?????????????????????# %bg ########### ??????? | | ?????????????????????# @# ?????? | | ?????????????????????# =# ?????? | | ?????????????????????###### ?????? | | ?????????????????????#######/##############??????? | | ?????????????????????# #???????????????????? | | ?????????????????????# #???????????????????? | | ?????????????????????# #???????????????????? | | ?????????????????????# #???????????????????? | | ???????????????????? / #???????????????????? | | ?????????????????? # #???????????????????? | | ?????????????????# ?# #???????????????????? | | ?????????????????# ??# #???????????????????? | | ?????????????????????# #???????????????????? | | ?????????????????????# #???????????????????? | | ?????????????????????#####"###???????????????????? | | ?????????????????????###########?????????????????? | | ?????????????????????# #?????????????????? | | ?????????????????????# #?????????????????? | | ?????????????????????# #?????????????????? | | ?????????????????????# #?????????????????? | | ?????????????????????# """ """ #?????????????????? | | ?????????????????????# """ """ #?????? ?????????? | | ?????????????????????# """ """ #????? ????????? | | ?????????????????????# #???? ????????? | | ????????????????""???######+####??? ???????? | +----------------------------------------------------+ Best States ------------- Heat Dissipation 50 Energy Generation 10 Energy Capacity 250 Matter Stores 300 Matter Capacity 300 Sight Range 16 Terrain Scan Density 10 Evasion (%) 55 Recoil Reduction 2 Offensive Hacking 10 Item Schematics ----------------- None Robot Schematics ------------------ None Fabricated ------------ Nothing Alien Tech Used ----------------- None Achievements -------------- Part-time Excavator Unlikely Earthworm Challenges ------------ None Game ------ Seed GlidesysExplosivePit Manual? 0 Play Time 00:13:39 Cumulative 11.1 hours Start 2024.04.07 @ 09:44:26 End 2024.04.07 @ 10:13:29 Sessions 1 Manual Loads 0 Difficulty Rogue Special Mode None Game No. 26 Rogue 26 Adventurer 0 Explorer 0 Win Type - Total 0 Types 0/0/0/0/0/0/0/0/0 Lore% 17 Gallery% 20 Achievement% 17 Wizard Run 0 Options --------- Layout 1 ASCII 0 Keyboard 1 Movement Arrows Keybinds 0 Fullscreen 1 Font 24/Smallcaps Map View 50x35 Zoom Use 0% Tactical HUD 0 Map Filters NONE Filters NONE Steam 1 RUN: f1234c84-56c7-4b99-bfc8-2e22ffcc6564